[Event "Titled Tuesday Blitz June 28 Early 2022"]
[White "Kamsky, Gata"]
[Black "Shuvalov, Evgenij"]
[WhiteFideId "2000024"]
[BlackFideId "4187237"]
[WhiteElo "2645"]
[BlackElo "2023"]
[Result "1-0"]
[Round "01"]
[TimeControl "180+1"]
[Date "2022.06.28"]
[WhiteClock "0:00:25"]
[BlackClock "0:00:14"]

1. d4 {[%clk 0:03:00]}  d5 {[%clk 0:02:57]} 2. Bf4 {[%clk 0:02:58]}  c5 {[%clk 0:02:54]} 3. e3 {[%clk 0:02:56]}  Nc6 {[%clk 0:02:54]} 4. c3 {[%clk 0:02:54]}  Nf6 {[%clk 0:02:54]} 5. Nd2 {[%clk 0:02:49]}  e6 {[%clk 0:02:51]} 6. Ngf3 {[%clk 0:02:48]}  Bd6 {[%clk 0:02:50]} 7. Bg3 {[%clk 0:02:45]}  O-O {[%clk 0:02:45]} 8. Bd3 {[%clk 0:02:44]}  b6 {[%clk 0:02:44]} 9. Qe2 {[%clk 0:02:42]}  Bb7 {[%clk 0:02:43]} 10. Rd1 {[%clk 0:02:40]}  Rc8 {[%clk 0:02:25]} 11. e4 {[%clk 0:02:31]}  Be7 {[%clk 0:02:13]} 12. e5 {[%clk 0:02:29]}  Nh5 {[%clk 0:01:59]} 13. a3 {[%clk 0:02:26]}  cxd4 {[%clk 0:01:42]} 14. Nxd4 {[%clk 0:02:25]}  g6 {[%clk 0:01:33]} 15. N2f3 {[%clk 0:02:20]}  Na5 {[%clk 0:01:24]} 16. h4 {[%clk 0:02:12]}  Nc4 {[%clk 0:01:11]} 17. Bh2 {[%clk 0:02:07]}  Bxh4 {[%clk 0:00:54]} 18. g4 {[%clk 0:02:05]}  Ng7 {[%clk 0:00:53]} 19. Bf4 {[%clk 0:01:15]}  Be7 {[%clk 0:00:42]} 20. Bh6 {[%clk 0:01:11]}  Qd7 {[%clk 0:00:16]} 21. Ng5 {[%clk 0:01:08]}  Bxg5 {[%clk 0:00:13]} 22. Bxg5 {[%clk 0:01:08]}  f5 {[%clk 0:00:12]} 23. exf6 {[%clk 0:01:05]}  Ne8 {[%clk 0:00:12]} 24. Qxe6+ {[%clk 0:00:26]}  Qxe6+ {[%clk 0:00:12]} 25. Nxe6 {[%clk 0:00:27]}  Nxf6 {[%clk 0:00:12]} 26. Nxf8 {[%clk 0:00:26]}  Rxf8 {[%clk 0:00:13]} 27. Bxf6 {[%clk 0:00:24]}  Rxf6 {[%clk 0:00:13]} 28. Bxc4 {[%clk 0:00:24]}  dxc4 {[%clk 0:00:13]} 29. Rd8+ {[%clk 0:00:24]}  Kg7 {[%clk 0:00:12]} 30. Rd7+ {[%clk 0:00:24]}  Rf7 {[%clk 0:00:12]} 31. Rxh7+ {[%clk 0:00:24]}  Kxh7 {[%clk 0:00:13]} 32. Rxf7+ {[%clk 0:00:25]}  Kh6 {[%clk 0:00:14]} 33. Rxb7 {[%clk 0:00:25]} 1-0


[Site "https://www.chess.com"]

[Event "Titled Tuesday Blitz June 28 Early 2022"]
[White "Kanyamarala, Tarun"]
[Black "Martinez Alcantara, Jose Eduardo"]
[WhiteFideId "45004714"]
[BlackFideId "3805662"]
[WhiteElo "2219"]
[BlackElo "2703"]
[Result "0-1"]
[Round "01"]
[TimeControl "180+1"]
[Date "2022.06.28"]
[WhiteClock "0:00:03"]
[BlackClock "0:00:42"]

1. d4 {[%clk 0:03:00]}  Nf6 {[%clk 0:02:59]} 2. Nf3 {[%clk 0:02:58]}  e6 {[%clk 0:03:00]} 3. c4 {[%clk 0:02:58]}  Bb4+ {[%clk 0:03:00]} 4. Nc3 {[%clk 0:02:54]}  b6 {[%clk 0:02:59]} 5. Bd2 {[%clk 0:02:53]}  Bb7 {[%clk 0:02:59]} 6. e3 {[%clk 0:02:53]}  O-O {[%clk 0:02:58]} 7. Bd3 {[%clk 0:02:52]}  Bxc3 {[%clk 0:02:58]} 8. Bxc3 {[%clk 0:02:52]}  Ne4 {[%clk 0:02:58]} 9. Bb4 {[%clk 0:02:50]}  d6 {[%clk 0:02:53]} 10. O-O {[%clk 0:02:47]}  Nd7 {[%clk 0:02:51]} 11. Nd2 {[%clk 0:02:44]}  Nef6 {[%clk 0:02:48]} 12. e4 {[%clk 0:02:37]}  c5 {[%clk 0:02:47]} 13. Bc3 {[%clk 0:02:35]}  cxd4 {[%clk 0:02:44]} 14. Bxd4 {[%clk 0:02:35]}  Nc5 {[%clk 0:02:44]} 15. Qe2 {[%clk 0:02:32]}  e5 {[%clk 0:02:43]} 16. Bc3 {[%clk 0:02:30]}  Qc7 {[%clk 0:02:37]} 17. b3 {[%clk 0:02:28]}  a5 {[%clk 0:02:36]} 18. f4 {[%clk 0:02:16]}  Rfe8 {[%clk 0:02:33]} 19. f5 {[%clk 0:01:57]}  b5 {[%clk 0:02:20]} 20. cxb5 {[%clk 0:01:45]}  d5 {[%clk 0:02:20]} 21. Rac1 {[%clk 0:01:28]}  dxe4 {[%clk 0:02:19]} 22. Bc4 {[%clk 0:01:26]}  Rad8 {[%clk 0:02:10]} 23. Kh1 {[%clk 0:01:09]}  Nd3 {[%clk 0:02:05]} 24. Bxd3 {[%clk 0:01:06]}  exd3 {[%clk 0:02:05]} 25. Qe3 {[%clk 0:01:04]}  Nd5 {[%clk 0:01:56]} 26. Qg3 {[%clk 0:00:56]}  Nxc3 {[%clk 0:01:20]} 27. f6 {[%clk 0:00:56]}  g6 {[%clk 0:01:20]} 28. Qg5 {[%clk 0:00:48]}  Kh8 {[%clk 0:00:58]} 29. Qh6 {[%clk 0:00:44]}  Rg8 {[%clk 0:00:58]} 30. Nf3 {[%clk 0:00:21]}  g5 {[%clk 0:00:58]} 31. h4 {[%clk 0:00:11]}  Bxf3 {[%clk 0:00:50]} 32. Rxf3 {[%clk 0:00:10]}  d2 {[%clk 0:00:50]} 33. Rcxc3 {[%clk 0:00:07]}  d1=Q+ {[%clk 0:00:50]} 34. Kh2 {[%clk 0:00:08]}  Qcd6 {[%clk 0:00:42]} 35. hxg5 {[%clk 0:00:07]}  e4+ {[%clk 0:00:42]} 36. Rg3 {[%clk 0:00:04]}  Rg6 {[%clk 0:00:42]} 37. Qh5 {[%clk 0:00:03]}  Qxh5+ {[%clk 0:00:42]} 0-1


[Site "https://www.chess.com"]

[Event "Titled Tuesday Blitz June 28 Early 2022"]
[White "Kanyamarala, Trisha"]
[Black "Adla, Diego"]
[WhiteFideId "45004722"]
[BlackFideId "100072"]
[WhiteElo "2134"]
[BlackElo "2377"]
[Result "0-1"]
[Round "01"]
[TimeControl "180+1"]
[Date "2022.06.28"]
[WhiteClock "0:00:01"]
[BlackClock "0:00:44"]

1. c4 {[%clk 0:03:00]}  e6 {[%clk 0:02:51]} 2. Nc3 {[%clk 0:02:58]}  b6 {[%clk 0:02:50]} 3. g3 {[%clk 0:02:51]}  Bb7 {[%clk 0:02:49]} 4. Nf3 {[%clk 0:02:51]}  Bb4 {[%clk 0:02:44]} 5. Bg2 {[%clk 0:02:45]}  f5 {[%clk 0:02:41]} 6. O-O {[%clk 0:02:44]}  Nf6 {[%clk 0:02:38]} 7. d4 {[%clk 0:02:42]}  Bxc3 {[%clk 0:02:34]} 8. bxc3 {[%clk 0:02:42]}  O-O {[%clk 0:02:32]} 9. a4 {[%clk 0:02:37]}  Nc6 {[%clk 0:02:27]} 10. Rb1 {[%clk 0:02:34]}  Na5 {[%clk 0:02:24]} 11. Ba3 {[%clk 0:02:27]}  d6 {[%clk 0:02:15]} 12. c5 {[%clk 0:02:25]}  Be4 {[%clk 0:02:10]} 13. Ra1 {[%clk 0:02:20]}  Nc4 {[%clk 0:02:06]} 14. cxd6 {[%clk 0:02:14]}  cxd6 {[%clk 0:02:03]} 15. Nd2 {[%clk 0:01:48]}  Bxg2 {[%clk 0:01:59]} 16. Kxg2 {[%clk 0:01:47]}  Rc8 {[%clk 0:01:58]} 17. Nf3 {[%clk 0:01:28]}  Qd7 {[%clk 0:01:53]} 18. Bb4 {[%clk 0:01:24]}  Qc6 {[%clk 0:01:47]} 19. a5 {[%clk 0:01:22]}  b5 {[%clk 0:01:43]} 20. a6 {[%clk 0:01:12]}  h6 {[%clk 0:01:41]} 21. Qd3 {[%clk 0:01:06]}  Ne4 {[%clk 0:01:38]} 22. d5 {[%clk 0:00:48]}  Qxd5 {[%clk 0:01:35]} 23. Qxd5 {[%clk 0:00:44]}  exd5 {[%clk 0:01:35]} 24. Rfd1 {[%clk 0:00:42]}  Nb6 {[%clk 0:01:32]} 25. Ra5 {[%clk 0:00:35]}  Nxc3 {[%clk 0:01:28]} 26. Bxc3 {[%clk 0:00:15]}  Rxc3 {[%clk 0:01:26]} 27. Rxb5 {[%clk 0:00:15]}  f4 {[%clk 0:01:22]} 28. Nd4 {[%clk 0:00:14]}  fxg3 {[%clk 0:01:21]} 29. hxg3 {[%clk 0:00:15]}  Re8 {[%clk 0:01:18]} 30. e3 {[%clk 0:00:14]}  Ra3 {[%clk 0:01:16]} 31. Nf5 {[%clk 0:00:08]}  Re6 {[%clk 0:01:13]} 32. Rc1 {[%clk 0:00:05]}  Rxa6 {[%clk 0:01:12]} 33. Rc7 {[%clk 0:00:06]}  g6 {[%clk 0:01:05]} 34. Nxh6+ {[%clk 0:00:05]}  Kf8 {[%clk 0:01:06]} 35. Rb4 {[%clk 0:00:05]}  Ra4 {[%clk 0:01:03]} 36. Rb1 {[%clk 0:00:04]}  Ra2 {[%clk 0:00:57]} 37. Rh1 {[%clk 0:00:04]}  Re7 {[%clk 0:00:50]} 38. Rc8+ {[%clk 0:00:02]}  Nxc8 {[%clk 0:00:49]} 39. Ng4 {[%clk 0:00:02]}  Nb6 {[%clk 0:00:46]} 40. Rh8+ {[%clk 0:00:01]}  Kg7 {[%clk 0:00:46]} 41. Rd8 {[%clk 0:00:01]}  Rd7 {[%clk 0:00:45]} 42. Re8 {[%clk 0:00:01]}  d4 {[%clk 0:00:44]} 43. exd4 {[%clk 0:00:01]}  Nd5 {[%clk 0:00:44]} 0-1


[Site "https://www.chess.com"]

[Event "Titled Tuesday Blitz June 28 Early 2022"]
[White "Khumalo, Keith"]
[Black "Kopczynski, Michal"]
[WhiteFideId "14319470"]
[BlackFideId "1124200"]
[WhiteElo "2057"]
[BlackElo "2235"]
[Result "0-1"]
[Round "01"]
[TimeControl "180+1"]
[Date "2022.06.28"]
[WhiteClock "0:01:49"]
[BlackClock "0:02:08"]

1. Nf3 {[%clk 0:02:50]}  d6 {[%clk 0:02:58]} 2. g3 {[%clk 0:02:47]}  e5 {[%clk 0:02:57]} 3. d3 {[%clk 0:02:47]}  g6 {[%clk 0:02:57]} 4. Bg2 {[%clk 0:02:48]}  Bg7 {[%clk 0:02:58]} 5. O-O {[%clk 0:02:49]}  Ne7 {[%clk 0:02:58]} 6. h4 {[%clk 0:02:50]}  O-O {[%clk 0:02:58]} 7. h5 {[%clk 0:02:50]}  Bg4 {[%clk 0:02:57]} 8. hxg6 {[%clk 0:02:50]}  fxg6 {[%clk 0:02:58]} 9. c4 {[%clk 0:02:50]}  Nbc6 {[%clk 0:02:58]} 10. Nc3 {[%clk 0:02:50]}  Qd7 {[%clk 0:02:58]} 11. Re1 {[%clk 0:02:50]}  Bh3 {[%clk 0:02:55]} 12. Bh1 {[%clk 0:02:41]}  h6 {[%clk 0:02:55]} 13. Rb1 {[%clk 0:02:40]}  Nf5 {[%clk 0:02:50]} 14. Ne4 {[%clk 0:02:24]}  Rf7 {[%clk 0:02:41]} 15. b4 {[%clk 0:02:22]}  Raf8 {[%clk 0:02:40]} 16. Qa4 {[%clk 0:02:15]}  Kh8 {[%clk 0:02:27]} 17. Be3 {[%clk 0:01:54]}  Nxe3 {[%clk 0:02:19]} 18. fxe3 {[%clk 0:01:55]}  Qg4 {[%clk 0:02:09]} 19. Nf2 {[%clk 0:01:49]}  Qxg3+ {[%clk 0:02:08]} 0-1


[Site "https://www.chess.com"]

[Event "Titled Tuesday Blitz June 28 Early 2022"]
[White "Kowalczyk, Pawel"]
[Black "Ocelak, Jakub"]
[WhiteFideId "1130641"]
[BlackFideId "23707933"]
[WhiteElo "2344"]
[BlackElo "2048"]
[Result "1-0"]
[Round "01"]
[TimeControl "180+1"]
[Date "2022.06.28"]
[WhiteClock "0:00:47"]
[BlackClock "0:00:15"]

1. e4 {[%clk 0:03:00]}  c5 {[%clk 0:02:56]} 2. g3 {[%clk 0:02:57]}  Nc6 {[%clk 0:02:55]} 3. Bg2 {[%clk 0:02:55]}  g6 {[%clk 0:02:53]} 4. c3 {[%clk 0:02:55]}  Bg7 {[%clk 0:02:53]} 5. Ne2 {[%clk 0:02:55]}  e5 {[%clk 0:02:52]} 6. O-O {[%clk 0:02:55]}  h5 {[%clk 0:02:43]} 7. h3 {[%clk 0:02:49]}  d6 {[%clk 0:02:43]} 8. a4 {[%clk 0:02:47]}  Nge7 {[%clk 0:02:41]} 9. Na3 {[%clk 0:02:47]}  Be6 {[%clk 0:02:40]} 10. Nc2 {[%clk 0:02:47]}  Qd7 {[%clk 0:02:33]} 11. Kh2 {[%clk 0:02:44]}  Bb3 {[%clk 0:02:28]} 12. Ra3 {[%clk 0:02:43]}  c4 {[%clk 0:02:26]} 13. d3 {[%clk 0:02:42]}  O-O {[%clk 0:02:05]} 14. d4 {[%clk 0:02:34]}  exd4 {[%clk 0:01:57]} 15. cxd4 {[%clk 0:02:34]}  d5 {[%clk 0:01:52]} 16. e5 {[%clk 0:02:30]}  Nf5 {[%clk 0:01:51]} 17. Be3 {[%clk 0:02:26]}  f6 {[%clk 0:01:46]} 18. Nf4 {[%clk 0:02:17]}  Nce7 {[%clk 0:01:34]} 19. e6 {[%clk 0:02:02]}  Qd6 {[%clk 0:01:30]} 20. Qd2 {[%clk 0:02:01]}  Bxc2 {[%clk 0:01:18]} 21. Qxc2 {[%clk 0:01:52]}  Nxe3 {[%clk 0:01:18]} 22. fxe3 {[%clk 0:01:51]}  h4 {[%clk 0:01:17]} 23. Qf2 {[%clk 0:01:34]}  Nf5 {[%clk 0:00:47]} 24. g4 {[%clk 0:01:19]}  Ne7 {[%clk 0:00:47]} 25. Kh1 {[%clk 0:01:16]}  g5 {[%clk 0:00:45]} 26. Nh5 {[%clk 0:01:16]}  Qxe6 {[%clk 0:00:45]} 27. e4 {[%clk 0:01:10]}  dxe4 {[%clk 0:00:41]} 28. Re3 {[%clk 0:01:08]}  Ng6 {[%clk 0:00:28]} 29. Bxe4 {[%clk 0:01:05]}  Qf7 {[%clk 0:00:29]} 30. Qf3 {[%clk 0:01:03]}  Rad8 {[%clk 0:00:22]} 31. Bxb7 {[%clk 0:01:02]}  Rxd4 {[%clk 0:00:20]} 32. Be4 {[%clk 0:00:54]}  Re8 {[%clk 0:00:10]} 33. Bd5 {[%clk 0:00:49]}  Rxd5 {[%clk 0:00:10]} 34. Rxe8+ {[%clk 0:00:49]}  Qxe8 {[%clk 0:00:11]} 35. Qxd5+ {[%clk 0:00:49]}  Kh7 {[%clk 0:00:10]} 36. Qb7 {[%clk 0:00:44]}  Ne7 {[%clk 0:00:06]} 37. Re1 {[%clk 0:00:38]}  Qd8 {[%clk 0:00:03]} 38. Qxe7 {[%clk 0:00:37]}  Qd5+ {[%clk 0:00:03]} 39. Qe4+ {[%clk 0:00:37]}  Qxe4+ {[%clk 0:00:03]} 40. Rxe4 {[%clk 0:00:38]}  Kg6 {[%clk 0:00:03]} 41. Nxg7 {[%clk 0:00:37]}  Kxg7 {[%clk 0:00:04]} 42. Rxc4 {[%clk 0:00:38]}  f5 {[%clk 0:00:05]} 43. gxf5 {[%clk 0:00:38]}  Kf6 {[%clk 0:00:05]} 44. Rc7 {[%clk 0:00:38]}  Kxf5 {[%clk 0:00:06]} 45. Rxa7 {[%clk 0:00:38]}  g4 {[%clk 0:00:07]} 46. Ra5+ {[%clk 0:00:39]}  Kf4 {[%clk 0:00:07]} 47. hxg4 {[%clk 0:00:39]}  Kxg4 {[%clk 0:00:07]} 48. Rb5 {[%clk 0:00:40]}  h3 {[%clk 0:00:07]} 49. b3 {[%clk 0:00:41]}  h2 {[%clk 0:00:08]} 50. a5 {[%clk 0:00:42]}  Kg3 {[%clk 0:00:08]} 51. Rb4 {[%clk 0:00:43]}  Kh3 {[%clk 0:00:09]} 52. Rb5 {[%clk 0:00:44]}  Kg3 {[%clk 0:00:10]} 53. Rb6 {[%clk 0:00:45]}  Kh3 {[%clk 0:00:11]} 54. Rb7 {[%clk 0:00:46]}  Kg3 {[%clk 0:00:11]} 55. Rb8 {[%clk 0:00:47]}  Kh3 {[%clk 0:00:11]} 56. a6 {[%clk 0:00:46]}  Kg3 {[%clk 0:00:12]} 57. Rb7 {[%clk 0:00:46]}  Kh3 {[%clk 0:00:13]} 58. a7 {[%clk 0:00:47]}  Kg3 {[%clk 0:00:14]} 59. a8=Q {[%clk 0:00:47]}  Kh3 {[%clk 0:00:15]} 60. Qg8 {[%clk 0:00:46]}  Kh4 {[%clk 0:00:15]} 61. Rh7# {[%clk 0:00:47]} 1-0


[Site "https://www.chess.com"]

[Event "Titled Tuesday Blitz June 28 Early 2022"]
[White "Kuzmin, Roman"]
[Black "Barp, Alberto"]
[WhiteFideId "44134932"]
[BlackFideId "872555"]
[WhiteElo "1968"]
[BlackElo "2229"]
[Result "1/2-1/2"]
[Round "01"]
[TimeControl "180+1"]
[Date "2022.06.28"]
[WhiteClock "0:00:25"]
[BlackClock "0:00:19"]

1. e4 {[%clk 0:02:58]}  Nc6 {[%clk 0:02:52]} 2. Nc3 {[%clk 0:02:55]}  Nf6 {[%clk 0:02:49]} 3. Nf3 {[%clk 0:02:54]}  d6 {[%clk 0:02:48]} 4. d4 {[%clk 0:02:54]}  g6 {[%clk 0:02:48]} 5. Bc4 {[%clk 0:02:53]}  Bg7 {[%clk 0:02:48]} 6. O-O {[%clk 0:02:53]}  O-O {[%clk 0:02:46]} 7. a4 {[%clk 0:02:53]}  Nxe4 {[%clk 0:02:44]} 8. Nxe4 {[%clk 0:02:51]}  d5 {[%clk 0:02:43]} 9. Bxd5 {[%clk 0:02:35]}  Qxd5 {[%clk 0:02:44]} 10. Nc3 {[%clk 0:02:35]}  Qh5 {[%clk 0:02:42]} 11. d5 {[%clk 0:02:27]}  Nb4 {[%clk 0:02:33]} 12. h3 {[%clk 0:02:07]}  Rd8 {[%clk 0:02:22]} 13. Qe2 {[%clk 0:02:05]}  Nxd5 {[%clk 0:02:19]} 14. Nxd5 {[%clk 0:02:04]}  Qxd5 {[%clk 0:02:20]} 15. Qxe7 {[%clk 0:02:02]}  Bxh3 {[%clk 0:02:16]} 16. Qxc7 {[%clk 0:01:56]}  Rac8 {[%clk 0:02:10]} 17. Qg3 {[%clk 0:01:56]}  Bf5 {[%clk 0:02:10]} 18. c3 {[%clk 0:01:56]}  Qb3 {[%clk 0:02:05]} 19. Ra3 {[%clk 0:01:48]}  Qc2 {[%clk 0:02:03]} 20. Nd4 {[%clk 0:01:46]}  Qd3 {[%clk 0:01:50]} 21. Nxf5 {[%clk 0:01:39]}  Qxf5 {[%clk 0:01:51]} 22. Be3 {[%clk 0:01:37]}  a6 {[%clk 0:01:46]} 23. Rb3 {[%clk 0:01:32]}  Rd7 {[%clk 0:01:46]} 24. Rb4 {[%clk 0:01:27]}  Be5 {[%clk 0:01:43]} 25. Qg4 {[%clk 0:01:22]}  Qxg4 {[%clk 0:01:40]} 26. Rxg4 {[%clk 0:01:23]}  f5 {[%clk 0:01:30]} 27. Rb4 {[%clk 0:01:23]}  Kf7 {[%clk 0:01:29]} 28. Re1 {[%clk 0:01:20]}  Bf6 {[%clk 0:01:28]} 29. g3 {[%clk 0:01:18]}  g5 {[%clk 0:01:27]} 30. Kg2 {[%clk 0:01:18]}  Rc6 {[%clk 0:01:27]} 31. Rh1 {[%clk 0:01:06]}  Kg6 {[%clk 0:01:27]} 32. Re1 {[%clk 0:00:59]}  Re6 {[%clk 0:01:26]} 33. Bd2 {[%clk 0:00:54]}  Rxe1 {[%clk 0:01:24]} 34. Bxe1 {[%clk 0:00:55]}  h5 {[%clk 0:01:18]} 35. Rb6 {[%clk 0:00:53]}  Kf7 {[%clk 0:01:15]} 36. Kf3 {[%clk 0:00:51]}  g4+ {[%clk 0:01:10]} 37. Kg2 {[%clk 0:00:49]}  h4 {[%clk 0:01:04]} 38. gxh4 {[%clk 0:00:47]}  Bxh4 {[%clk 0:01:05]} 39. c4 {[%clk 0:00:47]}  Bf6 {[%clk 0:01:04]} 40. Bb4 {[%clk 0:00:45]}  Bxb2 {[%clk 0:01:00]} 41. Rh6 {[%clk 0:00:45]}  Bg7 {[%clk 0:00:59]} 42. Rb6 {[%clk 0:00:44]}  Bd4 {[%clk 0:00:55]} 43. c5 {[%clk 0:00:42]}  Rc7 {[%clk 0:00:43]} 44. Rh6 {[%clk 0:00:41]}  Kg7 {[%clk 0:00:41]} 45. Rb6 {[%clk 0:00:40]}  Kg8 {[%clk 0:00:32]} 46. Kg3 {[%clk 0:00:40]}  Bxc5 {[%clk 0:00:32]} 47. Bxc5 {[%clk 0:00:39]}  Rxc5 {[%clk 0:00:33]} 48. Rxb7 {[%clk 0:00:40]}  Ra5 {[%clk 0:00:31]} 49. Kf4 {[%clk 0:00:39]}  Kf8 {[%clk 0:00:29]} 50. Ra7 {[%clk 0:00:38]}  Ke8 {[%clk 0:00:29]} 51. Rh7 {[%clk 0:00:39]}  Kd8 {[%clk 0:00:28]} 52. Ra7 {[%clk 0:00:39]}  Kc8 {[%clk 0:00:28]} 53. Rh7 {[%clk 0:00:39]}  Kb8 {[%clk 0:00:29]} 54. Rf7 {[%clk 0:00:40]}  Rxa4+ {[%clk 0:00:28]} 55. Kxf5 {[%clk 0:00:40]}  a5 {[%clk 0:00:28]} 56. Ke5 {[%clk 0:00:35]}  Rb4 {[%clk 0:00:26]} 57. f3 {[%clk 0:00:30]}  gxf3 {[%clk 0:00:20]} 58. Rxf3 {[%clk 0:00:30]}  a4 {[%clk 0:00:21]} 59. Kd5 {[%clk 0:00:30]}  Kb7 {[%clk 0:00:20]} 60. Kc5 {[%clk 0:00:29]}  Rh4 {[%clk 0:00:20]} 61. Kb5 {[%clk 0:00:27]}  Ka7 {[%clk 0:00:20]} 62. Rf7+ {[%clk 0:00:27]}  Kb8 {[%clk 0:00:20]} 63. Rf3 {[%clk 0:00:26]}  Kc7 {[%clk 0:00:20]} 64. Ra3 {[%clk 0:00:25]}  Kb7 {[%clk 0:00:18]} 65. Rxa4 {[%clk 0:00:24]}  Rxa4 {[%clk 0:00:19]} 66. Kxa4 {[%clk 0:00:25]} 1/2-1/2


[Site "https://www.chess.com"]

[Event "Titled Tuesday Blitz June 28 Early 2022"]
[White "Malyi, Viacheslav"]
[Black "Ciuffoletti, Paolo"]
[WhiteFideId "14123983"]
[BlackFideId "807630"]
[WhiteElo "2270"]
[BlackElo "2143"]
[Result "1-0"]
[Round "01"]
[TimeControl "180+1"]
[Date "2022.06.28"]
[WhiteClock "0:01:07"]
[BlackClock "0:00:03"]

1. e4 {[%clk 0:02:56]}  c5 {[%clk 0:02:58]} 2. Nf3 {[%clk 0:02:54]}  Nc6 {[%clk 0:02:59]} 3. d4 {[%clk 0:02:55]}  cxd4 {[%clk 0:02:59]} 4. Nxd4 {[%clk 0:02:56]}  Nf6 {[%clk 0:02:59]} 5. Nc3 {[%clk 0:02:49]}  e5 {[%clk 0:02:58]} 6. Ndb5 {[%clk 0:02:49]}  d6 {[%clk 0:02:58]} 7. Nd5 {[%clk 0:02:48]}  Nxd5 {[%clk 0:02:56]} 8. exd5 {[%clk 0:02:48]}  Nb8 {[%clk 0:02:57]} 9. c4 {[%clk 0:02:42]}  a6 {[%clk 0:02:45]} 10. Nc3 {[%clk 0:02:39]}  Be7 {[%clk 0:02:44]} 11. Be2 {[%clk 0:02:40]}  O-O {[%clk 0:02:44]} 12. O-O {[%clk 0:02:41]}  f5 {[%clk 0:02:44]} 13. f4 {[%clk 0:02:40]}  Bf6 {[%clk 0:02:42]} 14. Be3 {[%clk 0:02:39]}  Nd7 {[%clk 0:02:38]} 15. Rc1 {[%clk 0:02:38]}  exf4 {[%clk 0:02:37]} 16. Bxf4 {[%clk 0:02:37]}  Be5 {[%clk 0:02:33]} 17. Kh1 {[%clk 0:02:35]}  Qf6 {[%clk 0:02:23]} 18. Bxe5 {[%clk 0:02:29]}  Qxe5 {[%clk 0:02:06]} 19. b4 {[%clk 0:02:25]}  a5 {[%clk 0:02:03]} 20. a3 {[%clk 0:02:25]}  axb4 {[%clk 0:02:02]} 21. axb4 {[%clk 0:02:26]}  b6 {[%clk 0:01:38]} 22. Nb5 {[%clk 0:02:18]}  Ra2 {[%clk 0:01:23]} 23. Bf3 {[%clk 0:02:13]}  Nf6 {[%clk 0:01:05]} 24. Qd4 {[%clk 0:02:07]}  Qxd4 {[%clk 0:00:40]} 25. Nxd4 {[%clk 0:02:08]}  Bd7 {[%clk 0:00:38]} 26. Rfe1 {[%clk 0:02:05]}  Rb2 {[%clk 0:00:35]} 27. b5 {[%clk 0:02:03]}  Ne4 {[%clk 0:00:31]} 28. Nc6 {[%clk 0:01:51]}  Nd2 {[%clk 0:00:23]} 29. Re7 {[%clk 0:01:43]}  Nxf3 {[%clk 0:00:14]} 30. gxf3 {[%clk 0:01:42]}  Be8 {[%clk 0:00:13]} 31. Rg1 {[%clk 0:01:34]}  Bg6 {[%clk 0:00:11]} 32. Nd4 {[%clk 0:01:31]}  Ra8 {[%clk 0:00:08]} 33. Re2 {[%clk 0:01:25]}  Raa2 {[%clk 0:00:08]} 34. Rxb2 {[%clk 0:01:22]}  Rxb2 {[%clk 0:00:09]} 35. Re1 {[%clk 0:01:21]}  Kf7 {[%clk 0:00:06]} 36. Re6 {[%clk 0:01:18]}  Rd2 {[%clk 0:00:05]} 37. Nc6 {[%clk 0:01:14]}  Bh5 {[%clk 0:00:04]} 38. Rxd6 {[%clk 0:01:09]}  Bxf3+ {[%clk 0:00:04]} 39. Kg1 {[%clk 0:01:10]}  Rg2+ {[%clk 0:00:04]} 40. Kf1 {[%clk 0:01:09]}  Rxh2 {[%clk 0:00:05]} 41. Ne5+ {[%clk 0:01:06]}  Ke7 {[%clk 0:00:04]} 42. Re6+ {[%clk 0:01:06]}  Kf8 {[%clk 0:00:03]} 43. Nxf3 {[%clk 0:01:07]} 1-0


[Site "https://www.chess.com"]

[Event "Titled Tuesday Blitz June 28 Early 2022"]
[White "Mikhalsky, Vladimir"]
[Black "Cruz, Cristhian"]
[WhiteFideId "14144352"]
[BlackFideId "3801969"]
[WhiteElo "2301"]
[BlackElo "2497"]
[Result "0-1"]
[Round "01"]
[TimeControl "180+1"]
[Date "2022.06.28"]
[WhiteClock "0:00:26"]
[BlackClock "0:00:55"]

1. e4 {[%clk 0:02:58]}  e6 {[%clk 0:02:57]} 2. d4 {[%clk 0:02:50]}  d5 {[%clk 0:02:57]} 3. exd5 {[%clk 0:02:50]}  exd5 {[%clk 0:02:56]} 4. Bd3 {[%clk 0:02:50]}  Nc6 {[%clk 0:02:56]} 5. c3 {[%clk 0:02:49]}  Bd6 {[%clk 0:02:54]} 6. Ne2 {[%clk 0:02:47]}  Nge7 {[%clk 0:02:53]} 7. O-O {[%clk 0:02:45]}  Bf5 {[%clk 0:02:47]} 8. Bf4 {[%clk 0:02:44]}  O-O {[%clk 0:02:44]} 9. Bxd6 {[%clk 0:02:31]}  Qxd6 {[%clk 0:02:42]} 10. Ng3 {[%clk 0:02:31]}  Bg6 {[%clk 0:02:37]} 11. Bxg6 {[%clk 0:02:30]}  hxg6 {[%clk 0:02:36]} 12. Na3 {[%clk 0:02:24]}  Rae8 {[%clk 0:02:33]} 13. Re1 {[%clk 0:02:21]}  Nf5 {[%clk 0:02:22]} 14. Qf3 {[%clk 0:02:16]}  Nxg3 {[%clk 0:02:15]} 15. Qxg3 {[%clk 0:02:15]}  Qd7 {[%clk 0:02:00]} 16. Nc2 {[%clk 0:01:54]}  a6 {[%clk 0:01:56]} 17. h3 {[%clk 0:01:51]}  Na5 {[%clk 0:01:51]} 18. b3 {[%clk 0:01:48]}  b6 {[%clk 0:01:42]} 19. Rxe8 {[%clk 0:01:45]}  Rxe8 {[%clk 0:01:42]} 20. Re1 {[%clk 0:01:45]}  Rxe1+ {[%clk 0:01:38]} 21. Nxe1 {[%clk 0:01:44]}  Nb7 {[%clk 0:01:38]} 22. Qe5 {[%clk 0:01:39]}  Qc6 {[%clk 0:01:33]} 23. Nd3 {[%clk 0:01:18]}  Nd6 {[%clk 0:01:29]} 24. Nb4 {[%clk 0:01:12]}  Qxc3 {[%clk 0:01:27]} 25. Nxd5 {[%clk 0:01:10]}  Qa1+ {[%clk 0:01:22]} 26. Kh2 {[%clk 0:01:10]}  Qxa2 {[%clk 0:01:15]} 27. Nxc7 {[%clk 0:01:09]}  Nf5 {[%clk 0:01:11]} 28. d5 {[%clk 0:00:52]}  Qxf2 {[%clk 0:01:07]} 29. d6 {[%clk 0:00:52]}  Qd2 {[%clk 0:01:07]} 30. Qe8+ {[%clk 0:00:44]}  Kh7 {[%clk 0:01:06]} 31. d7 {[%clk 0:00:45]}  Qd6+ {[%clk 0:00:58]} 32. Kg1 {[%clk 0:00:43]}  Qd4+ {[%clk 0:00:56]} 33. Kh2 {[%clk 0:00:35]}  Qf4+ {[%clk 0:00:55]} 34. Kg1 {[%clk 0:00:33]}  Ne3 {[%clk 0:00:56]} 35. Qe4 {[%clk 0:00:26]}  Qxe4 {[%clk 0:00:55]} 0-1


[Site "https://www.chess.com"]